[Event "44th Chess Olympiad Open 2022"]
[Site "Chennai"]
[Date "2022.08.01"]
[Round "4.22"]
[White "Waldhausen Gordon, Frederick"]
[Black "Flores, Diego"]
[Result "0-1"]
[WhiteElo "2028"]
[BlackElo "2528"]
[Annotator "TA"]
[PlyCount "58"]
[EventDate "2022.??.??"]
[TimeControl "60"]

{[%evp 18,57,28,30,44,58,60,40,33,36,39,14,28,8,15,-90,-86,-102,-86,-76,-47,
-39,-50,-42,0,0,0,-12,-12,-12,-11,-16,-11,-29995,-29996,-29996,-29997,-29997,
-29998,-29998,-29999,-29999]} 1. e4 {[%emt 0:00:02]} c6 {[%emt 0:00:31]} 2. d4
{[%emt 0:00:36]} d5 {[%emt 0:00:08]} 3. Nc3 {[%emt 0:00:06]} dxe4 {[%emt 0:00:
00]} 4. Nxe4 {[%emt 0:00:12]} Nf6 {[%emt 0:00:08]} 5. Nxf6+ {[%emt 0:00:15]}
gxf6 {[%emt 0:00:10]} 6. c3 {[%emt 0:00:55]} Bf5 {[%emt 0:01:17]} 7. Bc4 {
[%emt 0:02:58]} e6 {[%emt 0:00:08]} 8. Ne2 {[%emt 0:00:43]} Nd7 {[%emt 0:00:18]
[%cal Yb8d7,Yd7b6,Yb6d5,Yd5e3]} 9. Ng3 {[%emt 0:02:33]} Bg6 {[%emt 0:00:00]}
10. h4 {[%emt 0:00:30][%cal Yh2h4,Yh4h5] h5 is the strong threat.} h6 {[%emt 0:
00:30] B16: Caro-Kann: Bronstein-Larsen Variation.} 11. h5 {[%emt 0:11:52]} Bh7
{[%emt 0:09:14] [#]} 12. Be3 $146 {[%emt 0:01:21]} ({Predecessor:} 12. Qf3 f5
13. Bf4 Nb6 14. Bb3 Nd5 15. Ne2 Nxf4 16. Nxf4 Bd6 17. g3 Qc7 18. O-O-O {
½-½ (50) Stoynov,I (2300)-Stefanov,K (2382) Albena 2010}) 12... Nb6 {[%emt 0:
02:46] White is slightly better.} 13. Bb3 {[%emt 0:03:26]} a5 {[%emt 0:09:54]}
14. O-O {[%emt 0:15:07]} Rg8 {[%emt 0:03:33]} 15. a4 {[%emt 0:08:54]} Nd5 {
[%emt 0:02:16]} 16. Qd2 {[%emt 0:01:33]} (16. Bxd5 $11 Qxd5 17. Qe2) 16... Nxe3
$17 {[%emt 0:13:13]} 17. Qxe3 {[%emt 0:00:48]} Qc7 {[%emt 0:00:44]} 18. Ne4 {
[%emt 0:07:08]} Bxe4 {[%emt 0:04:06]} 19. Qxe4 {[%emt 0:01:20][%cal Yb3e6]} f5
{[%emt 0:01:06]} 20. Qe3 {[%emt 0:03:08][%cal Yb3e6]} Rg5 {[%emt 0:05:50]} 21.
Bd1 {[%emt 0:02:44]} Bd6 {[%emt 0:03:42]} 22. Bf3 {[%emt 0:03:15]} Bh2+ {
[%emt 0:10:03]} 23. Kh1 {[%emt 0:00:06]} Bf4 $40 {[%emt 0:00:08] Black attacks.
} 24. Qe2 {[%emt 0:04:16]} Qe7 {[%emt 0:00:00][%cal Yg5h5] ( -> ...Rxh5+!)} 25.
Rfe1 $2 {[%emt 0:04:07] [#] Now White is beyond hope.} (25. Kg1 $11) 25...
Rxh5+ $3 {[%emt 0:00:58] Black mates.} 26. Kg1 {[%emt 0:00:48] [#]} Rh1+ $3 {
[%emt 0:00:10]} 27. Kxh1 {[%emt 0:00:15]} Qh4+ {[%emt 0:00:07]} 28. Kg1 {
[%emt 0:00:55]} Qh2+ {[%emt 0:00:06]} 29. Kf1 {[%emt 0:00:02]} Qh1# {[%emt 0:
00:08] Weighted Error Value: White=0.63/Black=0.05 (flawless)} 0-1

[Event "44th Chess Olympiad Open 2022"]
[Site "Chennai"]
[Date "2022.08.01"]
[Round "4.23"]
[White "Blomqvist, Erik"]
[Black "Cawdery, Daniel"]
[Result "1-0"]
[WhiteElo "2521"]
[BlackElo "2417"]
[Annotator "TA"]
[PlyCount "115"]
[EventDate "2022.??.??"]
[TimeControl "60"]

{[%evp 26,115,109,108,115,124,132,133,118,117,173,168,172,136,214,153,197,192,
202,193,205,195,201,158,159,110,147,139,156,161,189,190,189,150,150,141,133,
134,181,179,208,154,153,154,154,154,180,153,213,225,322,287,336,325,339,233,
241,240,235,212,466,465,406,454,427,375,477,477,595,594,666,667,679,671,641,
635,672,677,722,712,796,823,2314,2283,1258,879,1446,1413,1305,1273,1327,1150]} 
1. e4 {[%emt 0:00:06]} c5 {[%emt 0:00:15]} 2. Nf3 {[%emt 0:00:08]} e6 {[%emt 0:
00:00]} 3. d4 {[%emt 0:01:01]} cxd4 {[%emt 0:00:10]} 4. Nxd4 {[%emt 0:00:07]}
Nf6 {[%emt 0:00:13]} 5. Nc3 {[%emt 0:00:12]} Nc6 {[%emt 0:00:11]} 6. Nxc6 {
[%emt 0:02:13]} bxc6 {[%emt 0:00:07]} 7. e5 {[%emt 0:00:11]} Nd5 {[%emt 0:00:
00]} 8. Ne4 {[%emt 0:00:08]} Qc7 {[%emt 0:00:27]} 9. f4 {[%emt 0:00:20]} Qb6 {
[%emt 0:00:32]} 10. c4 {[%emt 0:00:58][%cal Yc2c4,Yc4c5]} Bb4+ {[%emt 0:00:48]}
11. Ke2 {[%emt 0:00:17]} Ba6 {[%emt 0:02:18]} 12. Kf3 {[%emt 0:00:00]} f5 {
[%emt 0:01:36]} 13. exf6 {[%emt 0:10:24]} Nxf6 {[%emt 0:00:11]} 14. c5 $1 {
[%emt 0:02:59]} Qa5 {[%emt 0:13:26] B45: Sicilian Four Knights.} 15. Nd6+ {
[%emt 0:01:40]} Ke7 {[%emt 0:09:03]} 16. Bxa6 {[%emt 0:00:23]} Qxa6 {[%emt 0:
01:45] White is clearly better.} (16... Qxc5 $2 17. Nb7 (17. Bb7 Rab8 $17)
17... Qh5+ 18. Kf2) 17. Be3 {[%emt 0:00:24] [#]} Raf8 $146 {[%emt 0:12:48]} (
17... Ba5 $16 {was worth a try.}) ({Predecessor:} 17... Nd5 18. Qd4 Rhg8 19. f5
Raf8 20. Bg5+ Rf6 21. Rhd1 Qa5 22. Rac1 Qxa2 23. Bxf6+ gxf6 24. fxe6 Rg5 25.
exd7 Kxd7 26. h4 Rg8 27. Qe4 Bxc5 28. Rxc5 Qxb2 29. Qf5+ {1-0 (29) Fier,A 
(2569)-Perez Candelario,M (2607) Peniche 2021}) 18. Qd4 $18 {[%emt 0:21:32]}
Ba5 {[%emt 0:02:39]} 19. f5 {[%emt 0:04:17]} h6 {[%emt 0:10:02] Prevents Bg5.}
(19... Bc7 $16) 20. Bf4 {[%emt 0:08:34]} Rhg8 {[%emt 0:08:31]} 21. Qc4 {
[%emt 0:15:16] Chess con chili.} (21. Nc4 Kd8 $14) 21... Qxc4 {[%emt 0:04:56]}
22. Nxc4 {[%emt 0:00:04]} Ne8 {[%emt 0:04:12][%cal Yf8f5]} 23. Nxa5 {[%emt 0:
00:00] And now g4 would win.} Rxf5 {[%emt 0:00:04] Hoping for ...g5.} 24. Kg3 {
[%emt 0:10:25]} Rxc5 {[%emt 0:03:53]} 25. Bd2 {[%emt 0:03:59]} (25. Nb3 $142
Rc2 26. Be5) 25... Rd5 {[%emt 0:00:57] aiming for ...Rd3+.} 26. Rad1 {[%emt 0:
00:00]} Nd6 {[%emt 0:02:28] Threatens to win with ...Ne4+.} 27. Rhe1 {[%emt 0:
00:00] Prevents Ne4+.} ({Don't play} 27. Bb4 $6 Rg5+ 28. Kf2 c5 $14) 27... Rf8
{[%emt 0:01:13]} 28. h3 $1 {[%emt 0:03:51]} ({Worse is} 28. Bb4 Rg5+ 29. Kh3
Rh5+ 30. Kg4 Rg5+ 31. Kh3 Rh5+ 32. Kg4 Rg5+ 33. Kh3 $11) 28... Rff5 {[%emt 0:
00:00]} 29. Bb4 {[%emt 0:01:41]} Rxd1 {[%emt 0:01:53]} 30. Rxd1 {[%emt 0:00:09]
} c5 {[%emt 0:00:02]} 31. Be1 {[%emt 0:02:05]} Ne4+ {[%emt 0:01:26] [#]} (31...
e5 $16) 32. Kh2 $1 {[%emt 0:00:09]} d5 {[%emt 0:02:30]} 33. Nc6+ {[%emt 0:00:
00]} Kd7 {[%emt 0:00:04]} 34. Nxa7 {[%emt 0:01:44]} Rf1 {[%emt 0:01:29]} 35. g4
{[%emt 0:03:49]} Rf8 {[%emt 0:01:58]} 36. Nb5 {[%emt 0:00:18]} Rb8 {[%emt 0:00:
00]} (36... Rf3 $16 37. Kg2 Re3) 37. a4 {[%emt 0:00:13]} c4 {[%emt 0:00:07]} (
37... g6 {was necessary.} 38. Kg2 Ra8) 38. Kg2 {[%emt 0:00:26]} Nc5 {[%emt 0:
00:00]} 39. Bg3 {[%emt 0:01:23]} Rb7 {[%emt 0:00:43]} 40. Be5 {[%emt 0:00:29]}
Nxa4 {[%emt 0:01:11] [#]} 41. Ra1 $1 {[%emt 0:07:37]} Nc5 {[%emt 0:16:59]} 42.
Nd6 {[%emt 0:00:19]} Rb6 {[%emt 0:01:39]} (42... Rb3 43. Nf7 (43. Ra7+ Kc6 $18)
43... Ke7) 43. Ra7+ {[%emt 0:06:22]} Kc6 {[%emt 0:00:27]} 44. Nf7 {[%emt 0:00:
00]} Nd3 {[%emt 0:02:03]} 45. Bd4 {[%emt 0:12:26]} Rb3 {[%emt 0:09:31]} 46.
Nd8+ {[%emt 0:00:00] White is clearly winning.} Kb5 {[%emt 0:00:22]} 47. Nxe6 {
[%emt 0:00:00]} Kc6 {[%emt 0:02:43]} 48. Bxg7 {[%emt 0:00:00]} Kd6 {[%emt 0:00:
00]} 49. Ra6+ {[%emt 0:00:00]} Ke7 {[%emt 0:00:25]} 50. Bxh6 {[%emt 0:00:00]}
Rxb2+ {[%emt 0:00:30]} 51. Kg3 {[%emt 0:00:00]} c3 {[%emt 0:02:39]} 52. Nd4 {
[%emt 0:00:00]} c2 {[%emt 0:02:21]} 53. Rc6 {[%emt 0:00:00]} Nb4 {[%emt 0:00:
00]} 54. Rc7+ {[%emt 0:00:00]} Ke8 {[%emt 0:01:01]} 55. h4 {[%emt 0:00:00]
[%cal Yh3h4,Yh4h5]} Ra2 {[%emt 0:00:25]} 56. h5 {[%emt 0:00:00] Black must now
prevent Bg5.} Ra3+ {[%emt 0:02:32]} 57. Kh4 {[%emt 0:00:00]} Ra6 {[%emt 0:00:
36]} 58. Bd2 {[%emt 0:00:00] Weighted Error Value: White=0.12 (very precise) /
Black=0.33} 1-0

[Event "44th Chess Olympiad Open 2022"]
[Site "Chennai"]
[Date "2022.08.01"]
[Round "4.23"]
[White "Westerberg, Jonathan"]
[Black "Kobese, Watu"]
[Result "1/2-1/2"]
[WhiteElo "2476"]
[BlackElo "2311"]
[Annotator "TA"]
[PlyCount "76"]
[EventDate "2022.??.??"]
[TimeControl "60"]

{[%evp 12,76,-9,-4,-11,-3,0,0,0,0,0,0,0,0,-2,-3,0,0,0,-25,-29,-30,-27,-21,-12,
-44,-5,-9,-17,-12,0,-59,-48,-69,-62,-64,-68,-164,-84,-85,-85,-84,-82,-88,-78,
-121,-116,-119,0,0,0,0,0,0,9,0,0,0,0,0,0,0,0,0,0,0,0]} 1. e4 {[%emt 0:00:06]}
e5 {[%emt 0:01:03]} 2. Nf3 {[%emt 0:00:15]} Nc6 {[%emt 0:00:12]} 3. Nc3 {
[%emt 0:00:21]} Nf6 {[%emt 0:00:27]} 4. Be2 {[%emt 0:00:24]} d5 {[%emt 0:01:20]
} 5. exd5 {[%emt 0:00:07]} Nxd5 {[%emt 0:00:07]} 6. O-O {[%emt 0:00:09]} Nxc3 {
[%emt 0:00:43]} 7. bxc3 {[%emt 0:00:09]} e4 {[%emt 0:00:10] C47: Scotch Four
Knights and Four Knights with 4 g3.} 8. Ne1 {[%emt 0:00:13]} Bd6 {[%emt 0:00:
00]} 9. f3 {[%emt 0:00:44]} Bf5 {[%emt 0:02:19]} 10. fxe4 {[%emt 0:01:23]} Bxe4
{[%emt 0:00:00] White must now prevent ...Qh4.} 11. Nf3 {[%emt 0:00:34]
Inhibits Qh4.} O-O {[%emt 0:00:41]} 12. d4 {[%emt 0:00:34]} h6 {[%emt 0:09:07]}
13. Bd3 {[%emt 0:03:08] [#]} Re8 $146 {[%emt 0:07:53]} (13... Qe7 {seems
wilder.} 14. g3 Rae8 15. Nh4 Bxd3 16. Qxd3 b6) ({Predecessor:} 13... Qe7 14.
Bxe4 Qxe4 15. Qd3 Rae8 16. Bd2 Qxd3 17. cxd3 f5 18. Rae1 Kh7 19. g3 g5 {
½-½ (52) Popov,I (2585)-Solodovnichenko,Y (2554) La Roda 2019}) 14. Rb1 {
[%emt 0:01:42]} b6 {[%emt 0:09:22]} 15. Bxe4 {[%emt 0:02:02]} Rxe4 {[%emt 0:00:
00]} 16. Qd3 {[%emt 0:00:10]} Qe7 {[%emt 0:21:29]} 17. Bd2 {[%emt 0:05:41]} Re8
{[%emt 0:03:00]} 18. Rf2 {[%emt 0:01:15]} Bf4 {[%emt 0:03:06]} 19. Bxf4 {
[%emt 0:09:54]} Rxf4 {[%emt 0:00:08]} 20. g3 {[%emt 0:01:58]} Rf6 {[%emt 0:00:
00]} 21. Rbf1 {[%emt 0:11:47]} (21. Re1 $11 Qd7 22. Rxe8+ Qxe8 23. Re2) 21...
Qd7 {[%emt 0:08:29]} 22. c4 {[%emt 0:04:47]} Qd6 {[%emt 0:06:56]} 23. Kg2 {
[%emt 0:09:47]} Rfe6 {[%emt 0:05:01]} 24. Qd2 {[%emt 0:12:06]} (24. Qf5 $15)
24... Re4 {[%emt 0:01:26]} (24... Na5 $19 25. c5 (25. Ne5 $2 f6 $19) 25... Qd5)
25. c3 $17 {[%emt 0:07:47]} Na5 {[%emt 0:01:37]} 26. Ne5 {[%emt 0:02:43] [#]}
Nxc4 $1 {[%emt 0:04:42]} 27. Nxc4 {[%emt 0:03:00]} Qd5 {[%emt 0:00:10]} 28.
Nxb6 {[%emt 0:03:01]} axb6 {[%emt 0:00:04]} 29. Kg1 {[%emt 0:01:01]} Re3 {
[%emt 0:02:22]} (29... f6 $17 30. Qc2 Qc6 31. Qb3+ Kh8) 30. Rxf7 $11 {[%emt 0:
00:00] The position is equal.} Qxf7 {[%emt 0:01:21]} 31. Rxf7 {[%emt 0:00:05]}
Kxf7 {[%emt 0:00:06] Endgame KQ-KRR} 32. Kf2 {[%emt 0:00:52]} R3e6 {[%emt 0:00:
32]} 33. Qd3 {[%emt 0:01:13]} R8e7 {[%emt 0:02:14]} 34. a4 {[%emt 0:00:00]} g6
{[%emt 0:01:58]} 35. h4 {[%emt 0:02:41]} Kg7 {[%emt 0:00:28]} 36. c4 {[%emt 0:
01:44]} Rf6+ {[%emt 0:00:21]} 37. Kg2 {[%emt 0:00:21]} Rfe6 {[%emt 0:00:00]}
38. Kf2 {[%emt 0:05:44]} Rf6+ {[%emt 0:00:26] Weighted Error Value: White=0.12
(very precise) /Black=0.09 (flawless)} 1/2-1/2

[Event "44th Chess Olympiad Open 2022"]
[Site "Chennai"]
[Date "2022.08.01"]
[Round "4.23"]
[White "Solomon, Kenny"]
[Black "Grandelius, Nils"]
[Result "0-1"]
[WhiteElo "2355"]
[BlackElo "2655"]
[Annotator "TA"]
[PlyCount "68"]
[EventDate "2022.??.??"]
[TimeControl "60"]

{[%evp 9,68,0,6,6,6,6,6,17,11,7,6,7,20,12,19,0,0,0,0,0,0,0,2,13,25,16,22,3,14,
0,0,-2,0,-20,-16,-13,-17,-88,-104,-104,-113,-93,-72,-90,-98,-173,-162,-254,
-245,-691,-419,-414,-337,-1285,-1260,-29992,-5806,-29995,-1593,-29996,-29997]} 
1. d4 {[%emt 0:00:02]} Nf6 {[%emt 0:00:39]} 2. Nf3 {[%emt 0:00:34]} d5 {
[%emt 0:01:09]} 3. c3 {[%emt 0:02:18]} Bf5 {[%emt 0:05:43]} 4. Qb3 {[%emt 0:00:
00]} Qc8 {[%emt 0:00:05]} 5. c4 {[%emt 0:02:19]} e6 {[%emt 0:01:06]} 6. cxd5 {
[%emt 0:04:07] D02:1 d4 d5 2 Nf3 sidelines, including 2...Nf6 3 g3 and 2...
Nf6 3 Bf4.} exd5 {[%emt 0:04:04]} 7. Nc3 {[%emt 0:00:42]} c6 {[%emt 0:00:13]}
8. Bf4 {[%emt 0:02:01] The position is equal.} Be7 {[%emt 0:04:18]} 9. e3 {
[%emt 0:05:45]} O-O {[%emt 0:02:34]} 10. Be2 {[%emt 0:00:19] [#]} b5 $146 {
[%emt 0:07:44][%cal Yb7b5,Yb5b4]} ({Predecessor:} 10... Nbd7 11. h3 Ne4 12. O-O
a5 13. Rac1 Nxc3 14. Qxc3 a4 15. a3 Qd8 16. Bd3 Bxd3 17. Qxd3 {1-0 (48)
Erigaisi,A (2629)-Maghsoodloo,P (2701) Warsaw 2021}) 11. O-O {[%emt 0:00:00]}
a5 {[%emt 0:06:10]} 12. a4 {[%emt 0:22:03]} b4 {[%emt 0:00:33]} 13. Nb1 {
[%emt 0:00:04]} Nbd7 {[%emt 0:01:10]} 14. Rc1 {[%emt 0:01:30]} Qb7 {[%emt 0:00:
00]} 15. Nbd2 {[%emt 0:01:55]} c5 {[%emt 0:04:21]} 16. dxc5 {[%emt 0:00:44]}
Nxc5 {[%emt 0:00:08]} 17. Qd1 {[%emt 0:00:17]} Nfe4 {[%emt 0:07:44]} 18. Nd4 {
[%emt 0:18:23]} Bd7 {[%emt 0:10:35]} 19. Nxe4 {[%emt 0:04:01]} dxe4 {[%emt 0:
00:00]} 20. Bc4 {[%emt 0:00:10]} Rac8 {[%emt 0:05:36]} 21. b3 {[%emt 0:08:53]}
Qb6 {[%emt 0:02:44]} 22. Rc2 {[%emt 0:04:22]} Qg6 {[%emt 0:07:37]} 23. Rac1 {
[%emt 0:03:52]} (23. Qf1 $11) 23... Nd3 $17 {[%emt 0:04:54]} 24. Bxd3 {[%emt 0:
00:00]} exd3 {[%emt 0:00:01]} 25. Rc7 {[%emt 0:00:48]} Rxc7 {[%emt 0:01:28]}
26. Rxc7 {[%emt 0:00:03]} Rd8 {[%emt 0:00:09][%cal Yf8d8,Yd8e8,Ye8e4]} 27. Qd2
{[%emt 0:12:07]} (27. f3 $17) 27... h6 {[%emt 0:02:33]} 28. Rc1 {[%emt 0:01:12]
} (28. Be5 {was forced.}) 28... Bf6 $1 $40 {[%emt 0:00:17] aiming for ...Bxd4.
Black attacks with force.} 29. Bc7 $2 {[%emt 0:01:17]} (29. f3) 29... Re8 {
[%emt 0:02:51] ...Bxd4 is the strong threat.} 30. Nb5 {[%emt 0:01:53]} Be6 {
[%emt 0:06:16]} 31. Nd6 $2 {[%emt 0:00:36]} (31. Kh1 Bxb3 32. Bxa5 Bxa4 33.
Qxb4) 31... Bc3 {[%emt 0:01:00][%cal Ye6h3] ( -> ...Bh3!). A strong pair of
Bishops.} 32. Qa2 {[%emt 0:00:46] [#]} d2 {[%emt 0:01:52]} (32... Bh3 $142 $1
33. g3 Qh5 $1 34. f3 Qxf3 $1 35. Qf2 d2 36. Rf1 Rxe3 37. Bb6 Qxf2+ 38. Kxf2 Re1
39. Rg1 Rxg1 40. Kxg1 d1=Q+ 41. Kf2 Qd2+ 42. Kf3 Bg2+ 43. Kg4 Qg5#) 33. Rd1 {
[%emt 0:00:21] [#]} Bd5 $1 {[%emt 0:00:18]} 34. e4 {[%emt 0:00:00]} (34. g3 Re7
) 34... Rxe4 {[%emt 0:00:21] Weighted Error Value: White=1.01/Black=0.67} 0-1

[Event "44th Chess Olympiad Open 2022"]
[Site "Chennai"]
[Date "2022.08.01"]
[Round "4.23"]
[White "Barrish, Daniel"]
[Black "Hillarp Persson, Tiger"]
[Result "0-1"]
[WhiteElo "2283"]
[BlackElo "2516"]
[Annotator "TA"]
[PlyCount "68"]
[EventDate "2022.??.??"]
[TimeControl "60"]

{[%evp 19,68,-43,-31,-134,-91,-102,-38,-34,-44,-29,-43,-127,-93,-129,-84,-82,
-85,-91,-91,-104,-79,-85,-89,-93,-35,-50,-81,-578,-535,-702,-734,-706,-476,
-476,-494,-479,-489,-476,-462,-862,-862,-12839,-12833,-29990,-29991,-29991,
-29992,-29992,-29979,-29998,-29999]} 1. d4 {[%emt 0:00:14]} Nf6 {[%emt 0:00:20]
} 2. c4 {[%emt 0:00:25]} e6 {[%emt 0:00:07]} 3. Nc3 {[%emt 0:00:19]} Bb4 {
[%emt 0:00:07]} 4. Qc2 {[%emt 0:00:20]} c5 {[%emt 0:03:17]} 5. dxc5 {[%emt 0:
00:00]} O-O {[%emt 0:00:23]} 6. Nf3 {[%emt 0:02:45]} Na6 {[%emt 0:01:30][%cal
Yb8a6,Ya6c5,Yc5e4]} 7. a3 {[%emt 0:08:20]} Bxc3+ {[%emt 0:00:13]} 8. Qxc3 {
[%emt 0:00:07]} Nxc5 {[%emt 0:00:08]} 9. b4 {[%emt 0:01:21]} Nce4 {[%emt 0:01:
51]} 10. Qd4 {[%emt 0:00:30]} d6 {[%emt 0:23:43]} 11. Bb2 {[%emt 0:00:00] E39:
Nimzo-Indian: Classical: 4...c5 5 dxc5 0-0.} ({White should play} 11. g3 $15)
11... e5 $17 {[%emt 0:00:17]} 12. Qe3 {[%emt 0:08:29] [#]} Bf5 $146 {[%emt 0:
12:43]} (12... b5 $17 {Threatens to win with ...Bb7.} 13. Nd2 Nxd2 14. Qxd2
bxc4) ({Predecessor:} 12... b6 13. g3 Bb7 14. Bh3 h5 15. O-O Ng4 16. Qb3 Qe7
17. Rad1 Rac8 18. Bg2 Qe6 {1-0 (60) Fodor,T (2476)-Neumeier,K (2293) Austria
2012}) 13. h3 $1 $15 {[%emt 0:00:51] Black is slightly better.} b5 {[%emt 0:08:
03][%cal Yb7b5,Yb5c4,Yc4c3,Yc3c2]} 14. g4 {[%emt 0:03:31]} Bg6 {[%emt 0:00:08]}
15. Rd1 {[%emt 0:06:45]} (15. g5 $15 Nd7 16. Nh4 Nxg5 17. cxb5) 15... bxc4 $17
{[%emt 0:01:40]} 16. Nxe5 {[%emt 0:00:37] [#]} dxe5 $1 {[%emt 0:00:37]} 17.
Rxd8 {[%emt 0:00:12]} Rfxd8 {[%emt 0:30:09]} 18. Bxe5 {[%emt 0:02:33] aiming
for f3.} c3 $1 $36 {[%emt 0:01:25] Black has strong initiative.} 19. Bg2 {
[%emt 0:00:43] Bxf6 is the strong threat.} (19. Bxc3 $2 Nd5 20. Qc1 Ndxc3 $19)
19... c2 $1 {[%emt 0:00:27][%csl Gc2][%cal Rd8d1] Black has strong
compensation.} 20. O-O {[%emt 0:00:19]} Rd1 {[%emt 0:00:10]} 21. Bb2 {[%emt 0:
07:44] [#]} h6 {[%emt 0:03:34] Really sharp! Black is much more active.} ({
Better is} 21... Rad8 $1 $17 {And now ...h6 would win.} 22. f4 (22. Qxa7 Nd2
$17) 22... Nd2) 22. f4 $1 $15 {[%emt 0:12:01] Hoping for f5.} Re8 $1 {[%emt 0:
03:07] Strongly threatening ...Nd2.} 23. f5 $2 {[%emt 0:04:52] White does not
recover from this.} (23. Qxa7 Nd2 24. f5 {[#]} Bxf5 $1 25. gxf5 Rxe2 $19) (23.
Bxe4 $17 Bxe4 24. Qc3 (24. Qxa7 Bd5 $17)) 23... Nd2 $19 {[%emt 0:00:21] Pin.
Pair of Knights!} 24. Qc3 {[%emt 0:00:39] [#]} Bxf5 {[%emt 0:00:59]} 25. gxf5 {
[%emt 0:00:39]} Nxf1 {[%emt 0:00:12]} 26. Bxf1 {[%emt 0:00:42]} Rxe2 {[%emt 0:
00:07]} 27. Qc4 {[%emt 0:12:33]} Ree1 {[%emt 0:00:18]} 28. Qxc2 {[%emt 0:00:22]
[%cal Yc2g2]} ({Weaker is} 28. Qc8+ Kh7 29. Qxc2 Rxf1+ 30. Kg2 Nd5 31. f6+ g6
$19) 28... Rxf1+ {[%emt 0:00:08]} 29. Kg2 {[%emt 0:00:58]} (29. Kh2 $142 Rh1+
30. Kg3 Rdg1+ 31. Kf4) 29... Nd5 {[%emt 0:04:21]} 30. Qc8+ {[%emt 0:02:54]} Kh7
{[%emt 0:00:06] ( -> ...Nf4+)} 31. f6 {[%emt 0:00:32]} Nf4+ {[%emt 0:01:44]
Black mates.} 32. Kg3 {[%emt 0:00:16]} Rd3+ {[%emt 0:00:11]} 33. Kg4 {[%emt 0:
00:30]} Ng6 {[%emt 0:01:33]} 34. fxg7 {[%emt 0:00:37]} Rf4+ {[%emt 0:00:10]
Weighted Error Value: White=1.13/Black=0.16 (very precise)} 0-1